Workbook

Sheet standaardposten
B1: Standaardposten | C1: 1. Dutch adventure ft Pain | D1: 2. Fiat Fiasco | E1: 3. Ge Speult Nie | F1: 4. T 5 Adventures | G1: 5. Pinal A | H1: 6. Team Slütterbrod | I1: 7. Cool Running (Swimming) | J1: 8. De Foutlopers | K1: 9. Edge Of Sanity | L1: 10.De laatste Padvinders | M1: 11.Beat the Cool Running fucking Swimmers | N1: 12.De Boekelbastards | O1: 13.Het Krolse Molleke | P1: 14.Balen Express | Q1: 15.Is 't nog ver | R1: 16.Dommelen vooruit | S1: 17.Kruier & Co | T1: 18.De straffe steenbokken | U1: 19.De Koltrollen | V1: 20.De Bostijgers | W1: 21.De Bospoezen | X1: 22.Wij Willen Weten Wie Willem Tell Was | Y1: 23.De Borascanen | Z1: 24.Miserable fat Belgian Bastards | AA1: 25.Krokodil
A2: 1 | B2: 20 | C2: 20 | D2: 20 | E2: 20 | F2: 20 | G2: 20 | H2: 20 | J2: 20 | K2: 20 | L2: 20 | O2: 20 | P2: 20 | R2: 20 | S2: 20 | T2: 20 | U2: 20 | V2: 20 | W2: 20 | X2: 20 | Z2: 20 | AA2: 20 | AB2: 20 | AC2: 20
A3: 2 | B3: 7 | C3: 7 | D3: 7 | E3: 7 | F3: 7 | G3: 7 | H3: 7 | J3: 7 | K3: 7 | L3: 7 | O3: 7 | P3: 7 | R3: 7 | S3: 7 | T3: 7 | U3: 7 | V3: 7 | W3: 7 | X3: 7 | Z3: 7 | AA3: 7 | AB3: 7 | AC3: 7
A4: 3 | B4: 32 | C4: 32 | D4: 32 | E4: 32 | F4: 32 | G4: 32 | H4: 87 | J4: 32 | K4: 32 | L4: 32 | O4: 32 | P4: 32 | R4: 32 | S4: 32 | T4: 32 | U4: 31 | V4: 32 | W4: 32 | X4: 32 | Z4: 32 | AA4: 29 | AB4: 32 | AC4: 32
A5: 4 | B5: 19 | C5: 19 | D5: 19 | E5: 19 | F5: 19 | G5: 19 | H5: 0 | J5: 19 | K5: 19 | L5: 19 | O5: 19 | P5: 19 | R5: 19 | S5: 19 | T5: 19 | U5: 19 | V5: 19 | W5: 19 | X5: 19 | Z5: 19 | AA5: 19 | AB5: 19 | AC5: 19
A6: 5 | B6: 52 | C6: 52 | D6: 52 | E6: 52 | F6: 52 | G6: 52 | H6: 52 | J6: 52 | K6: 52 | L6: 52 | O6: 52 | P6: 52 | R6: 52 | S6: 52 | T6: 52 | U6: 52 | V6: 52 | W6: 52 | X6: 52 | Z6: 52 | AA6: 52 | AB6: 52 | AC6: 52
A7: 6 | B7: 16 | C7: 16 | D7: 16 | E7: 16 | F7: 16 | G7: 16 | H7: 16 | J7: 16 | K7: 16 | L7: 16 | O7: 16 | P7: 16 | R7: 16 | S7: 16 | T7: 16 | U7: 16 | V7: 16 | W7: 16 | X7: 16 | Z7: 16 | AA7: 16 | AB7: 16 | AC7: 16
A8: 7 | B8: 24 | C8: 31 | D8: 24 | E8: 24 | F8: 31 | G8: 24 | H8: 24 | J8: 24 | K8: 24 | L8: 24 | O8: 24 | P8: 24 | R8: 24 | S8: 24 | T8: 24 | U8: 24 | V8: 24 | W8: 24 | X8: 24 | Z8: 24 | AA8: 24 | AB8: 24 | AC8: 24
A9: 8 | B9: 4 | C9: 4 | D9: 4 | E9: 4 | F9: 4 | G9: 4 | H9: 4 | J9: 4 | K9: 4 | L9: 4 | O9: 4 | P9: 4 | R9: 4 | S9: 4 | T9: 4 | U9: 4 | V9: 4 | W9: 4 | X9: 4 | Z9: 4 | AA9: 4 | AB9: 4 | AC9: 4
A10: 9 | B10: 23 | C10: 23 | D10: 23 | E10: 84 | F10: 84 | G10: 23 | H10: 84 | J10: 23 | K10: 23 | L10: 23 | O10: 23 | P10: 23 | R10: 84 | S10: 23 | T10: 23 | U10: 84 | V10: 23 | W10: 23 | X10: 84 | Z10: 84 | AA10: 23 | AB10: 23 | AC10: 23
A11: 10 | B11: 20 | C11: 20 | D11: 20 | E11: 20 | F11: 20 | G11: 20 | H11: 22 | J11: 20 | K11: 20 | L11: 20 | O11: 20 | P11: 20 | R11: 20 | S11: 20 | T11: 20 | U11: 20 | V11: 20 | W11: 20 | X11: 20 | Z11: 20 | AA11: 20 | AB11: 20 | AC11: 20
A12: 11 | B12: 54 | C12: 54 | D12: 54 | E12: 54 | F12: 54 | G12: 54 | H12: 54 | J12: 54 | K12: 54 | L12: 54 | O12: 54 | P12: 54 | R12: 54 | S12: 54 | T12: 54 | U12: 54 | V12: 54 | W12: 54 | X12: 54 | Z12: 54 | AA12: 54 | AB12: 54 | AC12: 54
A13: 12 | B13: 79 | C13: 79 | D13: 79 | E13: 79 | F13: 79 | G13: 79 | H13: 79 | J13: 79 | K13: 79 | L13: 79 | O13: 79 | P13: 79 | R13: 79 | S13: 79 | T13: 79 | U13: 79 | V13: 79 | W13: 79 | X13: 79 | Z13: 79 | AA13: 79 | AB13: 79 | AC13: 79
A14: 13 | B14: 36 | C14: 36 | D14: 36 | E14: 36 | F14: 36 | G14: 36 | H14: 36 | J14: 36 | K14: 36 | L14: 36 | O14: 36 | P14: 36 | R14: 36 | S14: 36 | T14: 36 | U14: 36 | V14: 36 | W14: 36 | X14: 36 | Z14: 36 | AA14: 36 | AB14: 36 | AC14: 36
A15: 14 | B15: 18 | C15: 18 | D15: 18 | E15: 18 | F15: 18 | G15: 18 | H15: 18 | J15: 18 | K15: 18 | L15: 18 | O15: 18 | P15: 18 | R15: 18 | S15: 18 | T15: 18 | U15: 18 | V15: 18 | W15: 18 | X15: 18 | Z15: 18 | AA15: 18 | AB15: 18 | AC15: 18
A16: 15 | B16: 40 | C16: 40 | D16: 40 | E16: 40 | F16: 26 | G16: 40 | H16: 26 | J16: 0 | K16: 40 | L16: 40 | O16: 40 | P16: 40 | R16: 40 | S16: 40 | T16: 40 | U16: 40 | V16: 40 | W16: 40 | X16: 40 | Z16: 40 | AA16: 40 | AB16: 40 | AC16: 40
A17: 16 | B17: 46 | C17: 46 | D17: 46 | E17: 46 | F17: 46 | G17: 46 | H17: 46 | J17: 0 | K17: 46 | L17: 46 | O17: 46 | P17: 46 | R17: 46 | S17: 46 | T17: 46 | U17: 46 | V17: 46 | W17: 46 | X17: 46 | Z17: 46 | AA17: 46 | AB17: 46 | AC17: 46
A18: 17 | B18: 8 | C18: 8 | D18: 8 | E18: 8 | F18: 8 | G18: 8 | H18: 8 | J18: 0 | K18: 8 | L18: 8 | O18: 8 | P18: 8 | R18: 10 | S18: 8 | T18: 8 | U18: 8 | V18: 8 | W18: 8 | X18: 8 | Z18: 72 | AA18: 8 | AB18: 8 | AC18: 8
A19: 18 | B19: 38 | C19: 38 | D19: 38 | E19: 38 | F19: 38 | G19: 38 | H19: 32 | J19: 0 | K19: 38 | L19: 38 | O19: 38 | P19: 38 | R19: 38 | S19: 38 | T19: 38 | U19: 38 | V19: 38 | W19: 38 | X19: 38 | Z19: 35 | AA19: 38 | AB19: 38 | AC19: 38
A20: 19 | B20: 3 | C20: 3 | D20: 3 | E20: 3 | F20: 3 | G20: 3 | H20: 3 | J20: 0 | K20: 3 | L20: 3 | O20: 3 | P20: 98 | R20: 3 | S20: 3 | T20: 3 | U20: 3 | V20: 3 | W20: 3 | X20: 3 | Z20: 3 | AA20: 3 | AB20: 3 | AC20: 3
A21: 20 | B21: 41 | C21: 41 | D21: 41 | E21: 41 | F21: 41 | G21: 41 | H21: 41 | J21: 0 | K21: 41 | L21: 41 | O21: 41 | P21: 41 | R21: 41 | S21: 41 | T21: 41 | U21: 41 | V21: 41 | W21: 41 | X21: 41 | Z21: 41 | AA21: 41 | AB21: 41 | AC21: 41
A22: 21 | B22: 23 | C22: 23 | D22: 23 | E22: 23 | F22: 23 | G22: 23 | H22: 23 | J22: 0 | K22: 23 | L22: 23 | O22: 23 | P22: 23 | R22: 23 | S22: 23 | T22: 23 | U22: 23 | V22: 23 | W22: 23 | X22: 23 | Z22: 23 | AA22: 23 | AB22: 23 | AC22: 23
A23: 22 | B23: 88 | C23: 88 | D23: 88 | E23: 88 | F23: 4 | G23: 88 | H23: 88 | J23: 0 | K23: 88 | L23: 88 | O23: 88 | P23: 88 | R23: 4 | S23: 88 | T23: 12 | U23: 88 | V23: 88 | W23: 88 | X23: 88 | Z23: 88 | AA23: 88 | AB23: 88 | AC23: 88
A24: 23 | B24: 63 | C24: 63 | D24: 63 | E24: 63 | F24: 63 | G24: 63 | H24: 0 | J24: 63 | K24: 63 | L24: 63 | O24: 12 | P24: 63 | R24: 0 | S24: 63 | T24: 0 | U24: 12 | V24: 63 | W24: 63 | X24: 63 | Z24: 12 | AA24: 0 | AB24: 63 | AC24: 63
A25: 24 | B25: 3 | C25: 54 | D25: 52 | E25: 52 | F25: 52 | G25: 52 | H25: 0 | J25: 52 | K25: 3 | L25: 3 | O25: 52 | P25: 3 | R25: 0 | S25: 52 | T25: 0 | U25: 52 | V25: 52 | W25: 52 | X25: 52 | Z25: 52 | AA25: 0 | AB25: 3 | AC25: 3
A26: 25 | B26: 19 | C26: 19 | D26: 19 | E26: 19 | F26: 19 | G26: 19 | H26: 0 | J26: 19 | K26: 19 | L26: 19 | O26: 19 | P26: 19 | R26: 0 | S26: 19 | T26: 0 | U26: 19 | V26: 19 | W26: 19 | X26: 19 | Z26: 19 | AA26: 0 | AB26: 19 | AC26: 19
A27: 26 | B27: 42 | C27: 42 | D27: 42 | E27: 42 | F27: 0 | G27: 42 | H27: 0 | J27: 42 | K27: 42 | L27: 42 | O27: 42 | P27: 42 | R27: 0 | S27: 42 | T27: 0 | U27: 0 | V27: 42 | W27: 42 | X27: 7 | Z27: 42 | AA27: 0 | AB27: 42 | AC27: 42
A28: 27 | B28: 15 | C28: 15 | D28: 15 | E28: 15 | F28: 15 | G28: 15 | H28: 15 | J28: 15 | K28: 15 | L28: 15 | O28: 15 | P28: 15 | R28: 0 | S28: 15 | T28: 15 | U28: 15 | V28: 15 | W28: 15 | X28: 15 | Z28: 15 | AA28: 15 | AB28: 15 | AC28: 15
A29: 28 | B29: 36 | C29: 36 | D29: 36 | E29: 36 | F29: 0 | G29: 36 | H29: 0 | J29: 0 | K29: 36 | L29: 36 | O29: 36 | P29: 36 | R29: 0 | S29: 36 | T29: 36 | U29: 30 | V29: 36 | W29: 36 | X29: 36 | Z29: 36 | AA29: 36 | AB29: 36 | AC29: 36
A30: 29 | B30: 17 | C30: 21 | D30: 44 | E30: 17 | F30: 0 | G30: 17 | H30: 0 | J30: 0 | K30: 17 | L30: 44 | O30: 0 | P30: 17 | R30: 0 | S30: 44 | T30: 0 | U30: 0 | V30: 17 | W30: 21 | X30: 21 | Z30: 21 | AA30: 0 | AB30: 17 | AC30: 17
A31: 30 | B31: 22 | C31: 22 | D31: 22 | E31: 22 | F31: 0 | G31: 22 | H31: 0 | J31: 0 | K31: 22 | L31: 0 | O31: 0 | P31: 22 | R31: 0 | S31: 22 | T31: 0 | U31: 0 | V31: 22 | W31: 22 | X31: 22 | Z31: 22 | AA31: 0 | AB31: 22 | AC31: 22
A32: 31 | B32: 42 | C32: 42 | D32: 42 | E32: 42 | F32: 0 | G32: 42 | H32: 0 | J32: 0 | K32: 42 | L32: 0 | O32: 0 | P32: 42 | R32: 0 | S32: 42 | T32: 0 | U32: 0 | V32: 42 | W32: 42 | X32: 0 | Z32: 42 | AA32: 0 | AB32: 42 | AC32: 42
A33: 32 | B33: 28 | C33: 28 | D33: 28 | E33: 0 | F33: 0 | G33: 28 | H33: 0 | J33: 0 | K33: 28 | L33: 0 | O33: 0 | P33: 28 | R33: 0 | S33: 28 | T33: 0 | U33: 0 | V33: 28 | W33: 28 | X33: 0 | Z33: 28 | AA33: 0 | AB33: 28 | AC33: 28
A34: 33 | B34: 17 | C34: 17 | D34: 17 | E34: 17 | F34: 0 | G34: 17 | H34: 0 | J34: 0 | K34: 17 | L34: 0 | O34: 0 | P34: 17 | R34: 0 | S34: 17 | T34: 0 | U34: 0 | V34: 17 | W34: 17 | X34: 0 | Z34: 17 | AA34: 0 | AB34: 17 | AC34: 17
A35: 34 | B35: 77 | C35: 77 | D35: 77 | E35: 77 | F35: 0 | G35: 77 | H35: 0 | J35: 0 | K35: 77 | L35: 0 | O35: 0 | P35: 77 | R35: 0 | S35: 77 | T35: 0 | U35: 0 | V35: 77 | W35: 77 | X35: 77 | Z35: 77 | AA35: 0 | AB35: 77 | AC35: 77
A36: 35 | B36: 22 | C36: 22 | D36: 22 | E36: 22 | F36: 0 | G36: 25 | H36: 0 | J36: 0 | K36: 22 | L36: 0 | O36: 0 | P36: 22 | R36: 0 | S36: 22 | T36: 0 | U36: 0 | V36: 22 | W36: 22 | X36: 0 | Z36: 22 | AA36: 0 | AB36: 22 | AC36: 22
A37: 36 | B37: 24 | C37: 24 | D37: 24 | E37: 0 | F37: 0 | G37: 24 | H37: 0 | J37: 0 | K37: 24 | L37: 0 | O37: 0 | P37: 24 | R37: 0 | S37: 24 | T37: 0 | U37: 0 | V37: 24 | W37: 24 | X37: 0 | Z37: 24 | AA37: 24 | AB37: 24 | AC37: 24
A38: 37 | B38: 61 | C38: 61 | D38: 61 | E38: 61 | F38: 0 | G38: 61 | H38: 0 | J38: 0 | K38: 0 | L38: 0 | O38: 61 | P38: 61 | R38: 0 | S38: 61 | T38: 0 | U38: 61 | V38: 61 | W38: 61 | X38: 0 | Z38: 61 | AA38: 61 | AB38: 61 | AC38: 61
A39: 38 | B39: 5 | C39: 5 | D39: 5 | E39: 5 | F39: 0 | G39: 5 | H39: 0 | J39: 0 | K39: 0 | L39: 0 | O39: 5 | P39: 5 | R39: 0 | S39: 5 | T39: 0 | U39: 5 | V39: 5 | W39: 5 | X39: 0 | Z39: 5 | AA39: 0 | AB39: 5 | AC39: 5
A40: 39 | B40: 71 | C40: 71 | D40: 71 | E40: 77 | F40: 0 | G40: 71 | H40: 0 | J40: 71 | K40: 71 | L40: 0 | O40: 71 | P40: 71 | R40: 0 | S40: 71 | T40: 71 | U40: 71 | V40: 71 | W40: 71 | X40: 0 | Z40: 71 | AA40: 0 | AB40: 71 | AC40: 71
A41: 40
A42: 41
A43: 42
A44: 43
A45: 44
A46: 45
A47: 46
A48: 47
A49: 48
A50: 49
A51: 50
A52: 51 | Y52: 0
A53: 52
A54: 53
A55: 54
A56: 55
A57: 56
A58: 57
A59: 58
A60: 59
A61: 60
A62: 61
A63: 62
A64: 63
A65: 64
A66: 65
A67: 66
A68: 67
A69: 68
A70: 69
A71: 70
A72: 71
A73: 72
A74: 73
A75: 74
A76: 75
A77: 76
A78: 77
A79: 78
A80: 79
A81: 80
B82: INCORRECT | C82: =CountByTest(C2:C81) -> 3 | D82: =CountByTest(D2:D81) -> 2 | E82: 5 | F82: 18 | G82: 2 | H82: 22 | I82: 0 | J82: 20 | K82: 2 | L82: 11 | M82: 0 | N82: 0 | O82: 10 | P82: 1 | Q82: 0 | R82: 20 | S82: 2 | T82: 15 | U82: 14 | V82: 1 | W82: 2 | X82: 12 | Y82: 0 | Z82: 6 | AA82: 14 | AB82: =CountByTest(AB2:AB81) -> 0 | AC82: 0 | AD82: 0 | AE82: 0 | AF82: 0 | AG82: 0 | AH82: 0 | AI82: 0 | AJ82: 0 | AK82: 0 | AL82: 0 | AM82: 0 | AN82: 0 | AO82: 0 | AP82: 0
B83: INCORRECT (x 30) | C83: =C82*30 -> 90 | D83: =D82*30 -> 60 | E83: 150 | F83: 540 | G83: 60 | H83: 660 | I83: 0 | J83: 600 | K83: 60 | L83: 330 | M83: 0 | N83: 0 | O83: 300 | P83: 30 | Q83: 0 | R83: 600 | S83: 60 | T83: 450 | U83: 420 | V83: 30 | W83: 60 | X83: 360 | Y83: 0 | Z83: 180 | AA83: 420 | AB83: 0 | AC83: 0 | AD83: 0 | AE83: 0 | AF83: 0 | AG83: 0 | AH83: 0 | AI83: 0 | AJ83: 0 | AK83: 0 | AL83: 0 | AM83: 0 | AN83: 0 | AO83: 0 | AP83: 0

Sheet specials
B1: Specials | C1: =standaardposten!C1 -> 1. Dutch adventure ft Pain | D1: =standaardposten!D1 -> 2. Fiat Fiasco | E1: =standaardposten!E1 -> 3. Ge Speult Nie | F1: =standaardposten!F1 -> 4. T 5 Adventures | G1: =standaardposten!G1 -> 5. Pinal A | H1: =standaardposten!H1 -> 6. Team Slütterbrod | I1: =standaardposten!I1 -> 7. Cool Running (Swimming) | J1: =standaardposten!J1 -> 8. De Foutlopers | K1: =standaardposten!K1 -> 9. Edge Of Sanity | L1: =standaardposten!L1 -> 10.De laatste Padvinders | M1: =standaardposten!M1 -> 11.Beat the Cool Running fucking Swimmers | N1: =standaardposten!N1 -> 12.De Boekelbastards | O1: =standaardposten!O1 -> 13.Het Krolse Molleke | P1: =standaardposten!P1 -> 14.Balen Express | Q1: =standaardposten!Q1 -> 15.Is 't nog ver | R1: =standaardposten!R1 -> 16.Dommelen vooruit | S1: =standaardposten!S1 -> 17.Kruier & Co | T1: =standaardposten!T1 -> 18.De straffe steenbokken | U1: =standaardposten!U1 -> 19.De Koltrollen | V1: =standaardposten!V1 -> 20.De Bostijgers | W1: =standaardposten!W1 -> 21.De Bospoezen | X1: =standaardposten!X1 -> 22.Wij Willen Weten Wie Willem Tell Was | Y1: =standaardposten!Y1 -> 23.De Borascanen | Z1: =standaardposten!Z1 -> 24.Miserable fat Belgian Bastards | AA1: =standaardposten!AA1 -> 25.Krokodil | AB1: =standaardposten!AB1 -> 0 | AC1: =standaardposten!AC1 -> 0 | AD1: =standaardposten!AD1 -> 0 | AE1: =standaardposten!AE1 -> 0 | AF1: =standaardposten!AF1 -> 0 | AG1: =standaardposten!AG1 -> 0 | AH1: =standaardposten!AH1 -> 0 | AI1: =standaardposten!AI1 -> 0 | AJ1: =standaardposten!AJ1 -> 0 | AK1: =standaardposten!AK1 -> 0 | AL1: =standaardposten!AL1 -> 0 | AM1: =standaardposten!AM1 -> 0 | AN1: =standaardposten!AN1 -> 0 | AO1: =standaardposten!AO1 -> 0 | AP1: =standaardposten!AP1 -> 0
A2: A | B2: 94 | C2: 94 | D2: 94 | E2: 94 | F2: 94 | G2: 94 | H2: 94 | J2: 94 | K2: 94 | L2: 94 | O2: 94 | P2: 94 | R2: 94 | S2: 94 | T2: 94 | U2: 94 | V2: 94 | W2: 94 | X2: 94 | Z2: 94 | AA2: 94 | AB2: 94 | AC2: 94
A3: B | B3: 1 | C3: 1 | D3: 1 | E3: 1 | F3: 1 | G3: 1 | H3: 1 | J3: 1 | K3: 1 | L3: 1 | O3: 1 | P3: 1 | R3: 1 | S3: 1 | T3: 1 | U3: 1 | V3: 1 | W3: 1 | X3: 1 | Z3: 1 | AA3: 1 | AB3: 1 | AC3: 1
A4: C | B4: 32 | C4: 32 | D4: 32 | E4: 59 | F4: 0 | G4: 32 | H4: 31 | J4: 32 | K4: 32 | L4: 31 | O4: 74 | P4: 32 | R4: 32 | S4: 31 | T4: 87 | U4: 87 | V4: 32 | W4: 32 | X4: 32 | Z4: 87 | AA4: 0 | AB4: 32 | AC4: 32
A5: D | B5: 30 | C5: 30 | D5: 6 | E5: 30 | F5: 6 | G5: 6 | H5: 30 | J5: 0 | K5: 6 | L5: 6 | O5: 6 | P5: 6 | R5: 6 | S5: 6 | T5: 6 | U5: 30 | V5: 30 | W5: 30 | X5: 6 | Z5: 6 | AA5: 6 | AB5: 30 | AC5: 30
A6: E | B6: 31 | C6: 31 | D6: 31 | E6: 31 | F6: 0 | G6: 31 | H6: 31 | J6: 31 | K6: 31 | L6: 31 | O6: 31 | P6: 31 | R6: 0 | S6: 31 | T6: 31 | U6: 31 | V6: 31 | W6: 31 | X6: 31 | Z6: 31 | AA6: 31 | AB6: 31 | AC6: 31
A7: F | B7: 2 | C7: 2 | D7: 2 | E7: 2 | F7: 2 | G7: 2 | H7: 2 | J7: 2 | K7: 2 | L7: 2 | O7: 2 | P7: 2 | R7: 2 | S7: 2 | T7: 2 | U7: 2 | V7: 2 | W7: 2 | X7: 2 | Z7: 2 | AA7: 0 | AB7: 2 | AC7: 2
A8: G | B8: 50 | C8: 50 | D8: 50 | E8: 50 | F8: 50 | G8: 50 | H8: 50 | J8: 50 | K8: 50 | L8: 50 | O8: 50 | P8: 50 | R8: 50 | S8: 50 | T8: 50 | U8: 50 | V8: 50 | W8: 50 | X8: 50 | Z8: 50 | AA8: 50 | AB8: 50 | AC8: 50
A9: H | B9: 7 | C9: 7 | D9: 7 | E9: 7 | F9: 7 | G9: 7 | H9: 7 | J9: 7 | K9: 7 | L9: 7 | O9: 7 | P9: 7 | R9: 7 | S9: 7 | T9: 7 | U9: 7 | V9: 7 | W9: 7 | X9: 7 | Z9: 7 | AA9: 7 | AB9: 7 | AC9: 7
A10: I | B10: 81 | C10: 81 | D10: 81 | E10: 10 | F10: 10 | G10: 81 | H10: 10 | J10: 81 | K10: 81 | L10: 10 | O10: 81 | P10: 10 | R10: 10 | S10: 81 | T10: 10 | U10: 81 | V10: 81 | W10: 10 | X10: 10 | Z10: 81 | AA10: 81 | AB10: 81 | AC10: 81
A11: J | B11: 10 | C11: 10 | D11: 10 | E11: 10 | F11: 10 | G11: 10 | H11: 10 | J11: 0 | K11: 10 | L11: 10 | O11: 0 | P11: 10 | R11: 31 | S11: 0 | T11: 10 | U11: 10 | V11: 10 | W11: 10 | X11: 0 | Z11: 10 | AA11: 0 | AB11: 10 | AC11: 10
A12: K | B12: 21 | C12: 26 | D12: 21 | E12: 26 | F12: 41 | G12: 21 | H12: 41 | J12: 0 | K12: 21 | L12: 26 | O12: 26 | P12: 21 | R12: 41 | S12: 26 | T12: 26 | U12: 26 | V12: 21 | W12: 21 | X12: 26 | Z12: 26 | AA12: 26 | AB12: 21 | AC12: 21
A13: L | B13: 10 | C13: 10 | D13: 10 | E13: 61 | F13: 61 | G13: 10 | H13: 47 | J13: 0 | K13: 61 | L13: 61 | O13: 17 | P13: 10 | R13: 10 | S13: 61 | T13: 10 | U13: 61 | V13: 61 | W13: 10 | X13: 61 | Z13: 61 | AA13: 10 | AB13: 10 | AC13: 10
A14: M | B14: 69 | C14: 69 | D14: 69 | E14: K | F14: 69 | G14: 69 | H14: 69 | J14: 69 | K14: 69 | L14: 69 | O14: 7 | P14: 69 | R14: 0 | S14: 69 | T14: K | U14: 8 | V14: 69 | W14: 69 | X14: 69 | Z14: 69 | AA14: 69 | AB14: 69 | AC14: 69
A15: N | B15: 37 | C15: 37 | D15: 37 | E15: 37 | F15: 37 | G15: 37 | H15: 0 | J15: 37 | K15: 37 | L15: 37 | O15: 0 | P15: 37 | R15: 0 | S15: 37 | T15: 0 | U15: 0 | V15: 37 | W15: 37 | X15: 35 | Z15: 37 | AA15: 0 | AB15: 37 | AC15: 37
A16: O | B16: 10 | C16: 10 | D16: 10 | E16: 10 | F16: 88 | G16: 10 | H16: 0 | J16: 10 | K16: 88 | L16: 88 | O16: 88 | P16: 88 | R16: 0 | S16: 88 | T16: 0 | U16: 88 | V16: 10 | W16: 88 | X16: 10 | Z16: 88 | AA16: 0 | AB16: 10 | AC16: 10
A17: P1 | B17: 78 | C17: 78 | D17: 78 | E17: 78 | F17: 78 | G17: 78 | H17: 78 | J17: 78 | K17: 78 | L17: 78 | O17: 78 | P17: 84 | R17: 0 | S17: 78 | T17: 78 | U17: 16 | V17: 78 | W17: 78 | X17: 16 | Z17: 78 | AA17: 78 | AB17: 78 | AC17: 78
A18: P2 | B18: 29 | C18: 29 | D18: 29 | E18: 29 | F18: 0 | G18: 29 | H18: 42 | J18: 29 | K18: 11 | L18: 29 | O18: 19 | P18: 29 | R18: 0 | S18: 29 | T18: 29 | U18: 29 | V18: 29 | W18: 29 | X18: 19 | Z18: 29 | AA18: 29 | AB18: 29 | AC18: 29
A19: Q | B19: 1 | C19: 1 | D19: 1 | E19: 1 | F19: 1 | G19: 1 | H19: 1 | J19: 1 | K19: 1 | L19: 0 | O19: 0 | P19: 1 | R19: 0 | S19: 1 | T19: 1 | U19: 0 | V19: 1 | W19: 1 | X19: 1 | Z19: 1 | AA19: 1 | AB19: 1 | AC19: 1
A20: R | B20: 13 | C20: 13 | D20: 13 | E20: 13 | F20: 13 | G20: 13 | H20: 13 | J20: 13 | K20: 13 | L20: 13 | O20: 13 | P20: 13 | R20: 0 | S20: 13 | T20: 13 | U20: 13 | V20: 13 | W20: 13 | X20: 13 | Z20: 13 | AA20: 13 | AB20: 13 | AC20: 13
A21: S | B21: 12 | C21: 79 | D21: 12 | E21: 12 | F21: 0 | G21: 12 | H21: 0 | J21: 0 | K21: 12 | L21: 12 | O21: 0 | P21: 12 | R21: 0 | S21: 12 | T21: 0 | U21: 0 | V21: 12 | W21: 12 | X21: 12 | Z21: 12 | AA21: 0 | AB21: 12 | AC21: 12
A22: T | B22: 11 | C22: 11 | D22: 11 | E22: 11 | F22: 11 | G22: 11 | H22: 11 | J22: 11 | K22: 11 | L22: 11 | O22: 11 | P22: 11 | R22: 0 | S22: 11 | T22: 11 | U22: 11 | V22: 11 | W22: 11 | X22: 11 | Z22: 11 | AA22: 11 | AB22: 11 | AC22: 11
A23: U | B23: 75 | C23: 75 | D23: 75 | E23: 75 | F23: 81 | G23: 75 | H23: 0 | J23: 0 | K23: 75 | L23: 75 | O23: 75 | P23: 75 | R23: 0 | S23: 75 | T23: 0 | U23: 75 | V23: 75 | W23: 81 | X23: 35 | Z23: 75 | AA23: 75 | AB23: 75 | AC23: 75
A24: V | B24: 15 | C24: 83 | D24: 83 | E24: 33 | F24: 0 | G24: 83 | H24: 0 | J24: 0 | K24: 83 | L24: 83 | O24: 83 | P24: 83 | R24: 0 | S24: 83 | T24: 0 | U24: 83 | V24: 83 | W24: 83 | X24: 83 | Z24: 83 | AA24: 83 | AB24: 15 | AC24: 15
A25: W | B25: 30 | C25: 30 | D25: 30 | E25: 30 | F25: 0 | G25: 30 | H25: 0 | J25: 0 | K25: 30 | L25: 30 | O25: 0 | P25: 30 | R25: 0 | S25: 30 | T25: 30 | U25: 0 | V25: 30 | W25: 30 | X25: 34 | Z25: 30 | AA25: 30 | AB25: 30 | AC25: 30
A26: X | B26: 47 | C26: 47 | D26: 47 | E26: 47 | F26: 0 | G26: 47 | H26: 0 | J26: 0 | K26: 47 | L26: 47 | O26: 0 | P26: 51 | R26: 0 | S26: 47 | T26: 47 | U26: 0 | V26: 47 | W26: 47 | X26: 47 | Z26: 47 | AA26: 0 | AB26: 47 | AC26: 47
A27: Y | B27: 71 | C27: 77 | D27: 71 | E27: 71 | F27: 0 | G27: 71 | H27: 0 | J27: 0 | K27: 71 | L27: 0 | O27: 0 | P27: 71 | R27: 0 | S27: 28 | T27: 0 | U27: 0 | V27: 71 | W27: 71 | X27: 0 | Z27: 71 | AA27: 0 | AB27: 71 | AC27: 71
A28: Z 1 | B28: 8 | C28: 8 | D28: 8 | E28: 77 | F28: 0 | G28: 77 | H28: 0 | J28: 0 | K28: 0 | L28: 0 | O28: 0 | P28: 8 | R28: 0 | S28: 8 | T28: 0 | U28: 0 | V28: 8 | W28: 8 | X28: 77 | Z28: 8 | AA28: 0 | AB28: 8 | AC28: 8
A29: Z 2 | B29: 82 | C29: 82 | D29: 82 | E29: 27 | F29: 0 | G29: 27 | H29: 0 | J29: 0 | K29: 82 | L29: 0 | O29: 0 | P29: 82 | R29: 0 | S29: 27 | T29: 0 | U29: 0 | V29: 27 | W29: 82 | X29: 0 | Z29: 87 | AA29: 0 | AB29: 82 | AC29: 82
A30: Z 3 | B30: 3 | C30: 3 | D30: 3 | E30: 3 | F30: 0 | G30: 3 | H30: 0 | J30: 0 | K30: 3 | L30: 0 | O30: 0 | P30: 28 | R30: 0 | S30: 28 | T30: 0 | U30: 0 | V30: 3 | W30: 3 | X30: 0 | Z30: 3 | AA30: 0 | AB30: 3 | AC30: 3
A31: Z4 | B31: 56 | C31: 56 | D31: 56 | E31: 0 | F31: 0 | G31: 56 | H31: 0 | J31: 0 | K31: 54 | L31: 0 | O31: 0 | P31: 56 | R31: 0 | S31: 0 | T31: 0 | U31: 0 | V31: 56 | W31: 56 | X31: 0 | Z31: 56 | AA31: 0 | AB31: 56 | AC31: 56
A32: Z 5 | B32: 87 | C32: 87 | D32: 87 | E32: 0 | F32: 0 | G32: 87 | H32: 0 | J32: 0 | K32: 37 | L32: 0 | O32: 0 | P32: 87 | R32: 0 | S32: 0 | T32: 0 | U32: 0 | V32: 87 | W32: 87 | X32: 0 | Z32: 87 | AA32: 0 | AB32: 87 | AC32: 87
A33: XL | B33: 7 | C33: 0 | D33: 7 | E33: 7 | F33: 0 | G33: 7 | H33: 0 | J33: 7 | K33: 7 | L33: 0 | O33: 0 | P33: 45 | R33: 0 | S33: 0 | T33: 0 | U33: 0 | V33: 7 | W33: 32 | X33: 0 | Z33: 7 | AA33: 7 | AB33: 7 | AC33: 7
A36: X8
A37: X9
A38: X10
A39: X11
A40: X12
A41: X13
A42: X14
A43: X15
A44: X16
A45: X17
A46: X18
A47: X19
A48: X20
B49: INCORRECT | C49: =CountByTestSpec(C2:C48) -> 5 | D49: 2 | E49: 10 | F49: 20 | G49: 4 | H49: 19 | I49: 0 | J49: 15 | K49: 8 | L49: 15 | M49: 0 | N49: 0 | O49: 21 | P49: 8 | Q49: 0 | R49: 25 | S49: 13 | T49: 17 | U49: 19 | V49: 3 | W49: 5 | X49: 18 | Y49: 0 | Z49: 7 | AA49: 16 | AB49: 0 | AC49: 0 | AD49: 0 | AE49: 0 | AF49: 0 | AG49: 0 | AH49: 0 | AI49: 0 | AJ49: 0 | AK49: 0 | AL49: 0 | AM49: 0 | AN49: 0 | AO49: 0 | AP49: 0
B50: INCORRECT (x 45) | C50: =C49*45 -> 225 | D50: =D49*45 -> 90 | E50: =E49*45 -> 450 | F50: 900 | G50: 180 | H50: 855 | I50: 0 | J50: 675 | K50: 360 | L50: 675 | M50: 0 | N50: 0 | O50: 945 | P50: 360 | Q50: 0 | R50: 1125 | S50: 585 | T50: 765 | U50: 855 | V50: 135 | W50: 225 | X50: 810 | Y50: 0 | Z50: 315 | AA50: 720 | AB50: 0 | AC50: 0 | AD50: 0 | AE50: 0 | AF50: 0 | AG50: 0 | AH50: 0 | AI50: 0 | AJ50: 0 | AK50: 0 | AL50: 0 | AM50: 0 | AN50: 0 | AO50: 0 | AP50: 0

Sheet totaal
A1: Totaal | B1: =standaardposten!C1 -> 1. Dutch adventure ft Pain | C1: =standaardposten!D1 -> 2. Fiat Fiasco | D1: =standaardposten!E1 -> 3. Ge Speult Nie | E1: =standaardposten!F1 -> 4. T 5 Adventures | F1: =standaardposten!G1 -> 5. Pinal A | G1: =standaardposten!H1 -> 6. Team Slütterbrod | H1: =standaardposten!I1 -> 7. Cool Running (Swimming) | I1: =standaardposten!J1 -> 8. De Foutlopers | J1: =standaardposten!K1 -> 9. Edge Of Sanity | K1: =standaardposten!L1 -> 10.De laatste Padvinders | L1: =standaardposten!M1 -> 11.Beat the Cool Running fucking Swimmers | M1: =standaardposten!N1 -> 12.De Boekelbastards | N1: =standaardposten!O1 -> 13.Het Krolse Molleke | O1: =standaardposten!P1 -> 14.Balen Express | P1: =standaardposten!Q1 -> 15.Is 't nog ver | Q1: =standaardposten!R1 -> 16.Dommelen vooruit | R1: =standaardposten!S1 -> 17.Kruier & Co | S1: =standaardposten!T1 -> 18.De straffe steenbokken | T1: =standaardposten!U1 -> 19.De Koltrollen | U1: =standaardposten!V1 -> 20.De Bostijgers | V1: =standaardposten!W1 -> 21.De Bospoezen | W1: =standaardposten!X1 -> 22.Wij Willen Weten Wie Willem Tell Was | X1: =standaardposten!Y1 -> 23.De Borascanen | Y1: =standaardposten!Z1 -> 24.Miserable fat Belgian Bastards | Z1: =standaardposten!AA1 -> 25.Krokodil | AA1: =standaardposten!AB1 -> 0 | AB1: =standaardposten!AC1 -> 0 | AC1: =standaardposten!AD1 -> 0 | AD1: =standaardposten!AE1 -> 0 | AE1: =standaardposten!AF1 -> 0 | AF1: =standaardposten!AG1 -> 0 | AG1: =standaardposten!AH1 -> 0 | AH1: =standaardposten!AI1 -> 0 | AI1: =standaardposten!AJ1 -> 0 | AJ1: =standaardposten!AK1 -> 0 | AK1: =standaardposten!AL1 -> 0 | AL1: =standaardposten!AM1 -> 0 | AM1: =standaardposten!AN1 -> 0 | AN1: =standaardposten!AO1 -> 0 | AO1: =standaardposten!AP1 -> 0
A2: Wedstrijduur | B2: =IF(B1<>0,360,9999) -> 360 | C2: =IF(C1<>0,360,9999) -> 360 | D2: 360 | E2: 360 | F2: 360 | G2: 360 | H2: 360 | I2: 360 | J2: 360 | K2: 360 | L2: 360 | M2: 360 | N2: 360 | O2: 360 | P2: 360 | Q2: 360 | R2: 360 | S2: 360 | T2: 360 | U2: 360 | V2: 360 | W2: 360 | X2: 360 | Y2: 360 | Z2: 360 | AA2: 9999 | AB2: 9999 | AC2: 9999 | AD2: 9999 | AE2: 9999 | AF2: 9999 | AG2: 9999 | AH2: 9999 | AI2: 9999 | AJ2: 9999 | AK2: 9999 | AL2: 9999 | AM2: 9999 | AN2: 9999 | AO2: 9999
A3: Te vroeg | B3: -24 | C3: -32 | F3: -5 | O3: -18 | U3: -69 | V3: -24
A4: Te laat | D4: +78 | E4: +87 | G4: +12 | H4: +3000 | I4: +87 | J4: +102 | L4: +3000 | M4: +3000 | N4: +54 | P4: +3000 | Q4: +180 | R4: +84 | S4: +69 | T4: +51 | W4: +165 | X4: +3000 | Y4: +45 | Z4: +123
A5: Standaardposten | B5: =standaardposten!C83 -> +90 | C5: =standaardposten!D83 -> +60 | D5: =standaardposten!E83 -> +150 | E5: =standaardposten!F83 -> +540 | F5: =standaardposten!G83 -> +60 | G5: =standaardposten!H83 -> +660 | H5: =standaardposten!I83 -> +0 | I5: =standaardposten!J83 -> +600 | J5: =standaardposten!K83 -> +60 | K5: =standaardposten!L83 -> +330 | L5: =standaardposten!M83 -> +0 | M5: =standaardposten!N83 -> +0 | N5: =standaardposten!O83 -> +300 | O5: =standaardposten!P83 -> +30 | P5: =standaardposten!Q83 -> +0 | Q5: =standaardposten!R83 -> +600 | R5: =standaardposten!S83 -> +60 | S5: =standaardposten!T83 -> +450 | T5: =standaardposten!U83 -> +420 | U5: =standaardposten!V83 -> +30 | V5: =standaardposten!W83 -> +60 | W5: =standaardposten!X83 -> +360 | X5: =standaardposten!Y83 -> +0 | Y5: =standaardposten!Z83 -> +180 | Z5: =standaardposten!AA83 -> +420 | AA5: =standaardposten!AB83 -> +0 | AB5: =standaardposten!AC83 -> +0 | AC5: =standaardposten!AD83 -> +0 | AD5: =standaardposten!AE83 -> +0 | AE5: =standaardposten!AF83 -> +0 | AF5: =standaardposten!AG83 -> +0 | AG5: =standaardposten!AH83 -> +0 | AH5: =standaardposten!AI83 -> +0 | AI5: =standaardposten!AJ83 -> +0 | AJ5: =standaardposten!AK83 -> +0 | AK5: =standaardposten!AL83 -> +0 | AL5: =standaardposten!AM83 -> +0 | AM5: =standaardposten!AN83 -> +0 | AN5: =standaardposten!AO83 -> +0 | AO5: =standaardposten!AP83 -> +0
A6: Specials | B6: =specials!C50 -> +225 | C6: =specials!D50 -> +90 | D6: =specials!E50 -> +450 | E6: =specials!F50 -> +900 | F6: =specials!G50 -> +180 | G6: =specials!H50 -> +855 | H6: =specials!I50 -> +0 | I6: =specials!J50 -> +675 | J6: =specials!K50 -> +360 | K6: =specials!L50 -> +675 | L6: =specials!M50 -> +0 | M6: =specials!N50 -> +0 | N6: =specials!O50 -> +945 | O6: =specials!P50 -> +360 | P6: =specials!Q50 -> +0 | Q6: =specials!R50 -> +1125 | R6: =specials!S50 -> +585 | S6: =specials!T50 -> +765 | T6: =specials!U50 -> +855 | U6: =specials!V50 -> +135 | V6: =specials!W50 -> +225 | W6: =specials!X50 -> +810 | X6: =specials!Y50 -> +0 | Y6: =specials!Z50 -> +315 | Z6: =specials!AA50 -> +720 | AA6: =specials!AB50 -> +0 | AB6: =specials!AC50 -> +0 | AC6: =specials!AD50 -> +0 | AD6: =specials!AE50 -> +0 | AE6: =specials!AF50 -> +0 | AF6: =specials!AG50 -> +0 | AG6: =specials!AH50 -> +0 | AH6: =specials!AI50 -> +0 | AI6: =specials!AJ50 -> +0 | AJ6: =specials!AK50 -> +0 | AK6: =specials!AL50 -> +0 | AL6: =specials!AM50 -> +0 | AM6: =specials!AN50 -> +0 | AN6: =specials!AO50 -> +0 | AO6: =specials!AP50 -> +0
A7: Totaal | B7: =SUM(B2:B6) -> 651 | C7: =SUM(C2:C6) -> 478 | D7: 1038 | E7: 1887 | F7: 595 | G7: 1887 | H7: 3360 | I7: 1722 | J7: 882 | K7: 1365 | L7: 3360 | M7: 3360 | N7: 1659 | O7: 732 | P7: 3360 | Q7: 2265 | R7: 1089 | S7: 1644 | T7: 1686 | U7: 456 | V7: 621 | W7: 1695 | X7: 3360 | Y7: 900 | Z7: 1623 | AA7: 9999 | AB7: 9999 | AC7: 9999 | AD7: 9999 | AE7: 9999 | AF7: 9999 | AG7: 9999 | AH7: 9999 | AI7: 9999 | AJ7: 9999 | AK7: 9999 | AL7: 9999 | AM7: 9999 | AN7: 9999 | AO7: 9999

Sheet UITSLAG
A1: Totaal | B1: =standaardposten!V1 -> 20.De Bostijgers | C1: =standaardposten!D1 -> 2. Fiat Fiasco | D1: =standaardposten!G1 -> 5. Pinal A | E1: =standaardposten!W1 -> 21.De Bospoezen | F1: =standaardposten!C1 -> 1. Dutch adventure ft Pain | G1: =standaardposten!P1 -> 14.Balen Express | H1: =standaardposten!K1 -> 9. Edge Of Sanity | I1: =standaardposten!Z1 -> 24.Miserable fat Belgian Bastards | J1: =standaardposten!E1 -> 3. Ge Speult Nie | K1: =standaardposten!S1 -> 17.Kruier & Co | L1: =standaardposten!L1 -> 10.De laatste Padvinders | M1: =standaardposten!AA1 -> 25.Krokodil | N1: =standaardposten!T1 -> 18.De straffe steenbokken | O1: =standaardposten!O1 -> 13.Het Krolse Molleke | P1: =standaardposten!U1 -> 19.De Koltrollen | Q1: =standaardposten!X1 -> 22.Wij Willen Weten Wie Willem Tell Was | R1: =standaardposten!J1 -> 8. De Foutlopers | S1: =standaardposten!F1 -> 4. T 5 Adventures | T1: =standaardposten!H1 -> 6. Team Slütterbrod | U1: =standaardposten!R1 -> 16.Dommelen vooruit | V1: =standaardposten!I1 -> 7. Cool Running (Swimming) | W1: =standaardposten!M1 -> 11.Beat the Cool Running fucking Swimmers | X1: =standaardposten!N1 -> 12.De Boekelbastards | Y1: =standaardposten!Q1 -> 15.Is 't nog ver | Z1: =standaardposten!Y1 -> 23.De Borascanen | AA1: =standaardposten!AB1 -> 0 | AB1: =standaardposten!AC1 -> 0 | AC1: =standaardposten!AD1 -> 0 | AD1: =standaardposten!AE1 -> 0 | AE1: =standaardposten!AF1 -> 0 | AF1: =standaardposten!AG1 -> 0 | AG1: =standaardposten!AH1 -> 0 | AH1: =standaardposten!AI1 -> 0 | AI1: =standaardposten!AJ1 -> 0 | AJ1: =standaardposten!AK1 -> 0 | AK1: =standaardposten!AL1 -> 0 | AL1: =standaardposten!AM1 -> 0 | AM1: =standaardposten!AN1 -> 0 | AN1: =standaardposten!AO1 -> 0 | AO1: =standaardposten!AP1 -> 0
A2: Wedstrijdduur | B2: =IF(B1<>0,360,9999) -> 360 | C2: =IF(C1<>0,360,9999) -> 360 | D2: =IF(D1<>0,360,9999) -> 360 | E2: =IF(E1<>0,360,9999) -> 360 | F2: =IF(F1<>0,360,9999) -> 360 | G2: =IF(G1<>0,360,9999) -> 360 | H2: =IF(H1<>0,360,9999) -> 360 | I2: =IF(I1<>0,360,9999) -> 360 | J2: =IF(J1<>0,360,9999) -> 360 | K2: =IF(K1<>0,360,9999) -> 360 | L2: =IF(L1<>0,360,9999) -> 360 | M2: =IF(M1<>0,360,9999) -> 360 | N2: =IF(N1<>0,360,9999) -> 360 | O2: =IF(O1<>0,360,9999) -> 360 | P2: =IF(P1<>0,360,9999) -> 360 | Q2: =IF(Q1<>0,360,9999) -> 360 | R2: =IF(R1<>0,360,9999) -> 360 | S2: =IF(S1<>0,360,9999) -> 360 | T2: =IF(T1<>0,360,9999) -> 360 | U2: =IF(U1<>0,360,9999) -> 360 | V2: =IF(V1<>0,360,9999) -> 360 | W2: =IF(W1<>0,360,9999) -> 360 | X2: =IF(X1<>0,360,9999) -> 360 | Y2: =IF(Y1<>0,360,9999) -> 360 | Z2: =IF(Z1<>0,360,9999) -> 360 | AA2: =IF(AA1<>0,360,9999) -> 9999 | AB2: =IF(AB1<>0,360,9999) -> 9999 | AC2: =IF(AC1<>0,360,9999) -> 9999 | AD2: =IF(AD1<>0,360,9999) -> 9999 | AE2: =IF(AE1<>0,360,9999) -> 9999 | AF2: =IF(AF1<>0,360,9999) -> 9999 | AG2: =IF(AG1<>0,360,9999) -> 9999 | AH2: =IF(AH1<>0,360,9999) -> 9999 | AI2: =IF(AI1<>0,360,9999) -> 9999 | AJ2: =IF(AJ1<>0,360,9999) -> 9999 | AK2: =IF(AK1<>0,360,9999) -> 9999 | AL2: =IF(AL1<>0,360,9999) -> 9999 | AM2: =IF(AM1<>0,360,9999) -> 9999 | AN2: =IF(AN1<>0,360,9999) -> 9999 | AO2: =IF(AO1<>0,360,9999) -> 9999
A3: Te vroeg | B3: -69 | C3: -32 | D3: -5 | E3: -24 | F3: -24 | G3: -18
A4: Te laat | H4: +102 | I4: +45 | J4: +78 | K4: +84 | M4: +123 | N4: +69 | O4: +54 | P4: +51 | Q4: +165 | R4: +87 | S4: +87 | T4: +12 | U4: +180 | V4: +3000 | W4: +3000 | X4: +3000 | Y4: +3000 | Z4: +3000
A5: Standaardposten | B5: =standaardposten!V83 -> +30 | C5: =standaardposten!D83 -> +60 | D5: =standaardposten!G83 -> +60 | E5: =standaardposten!W83 -> +60 | F5: =standaardposten!C83 -> +90 | G5: =standaardposten!P83 -> +30 | H5: =standaardposten!K83 -> +60 | I5: =standaardposten!Z83 -> +180 | J5: =standaardposten!E83 -> +150 | K5: =standaardposten!S83 -> +60 | L5: =standaardposten!L83 -> +330 | M5: =standaardposten!AA83 -> +420 | N5: =standaardposten!T83 -> +450 | O5: =standaardposten!O83 -> +300 | P5: =standaardposten!U83 -> +420 | Q5: =standaardposten!X83 -> +360 | R5: =standaardposten!J83 -> +600 | S5: =standaardposten!F83 -> +540 | T5: =standaardposten!H83 -> +660 | U5: =standaardposten!R83 -> +600 | V5: =standaardposten!I83 -> +0 | W5: =standaardposten!M83 -> +0 | X5: =standaardposten!N83 -> +0 | Y5: =standaardposten!Q83 -> +0 | Z5: =standaardposten!Y83 -> +0 | AA5: =standaardposten!AB83 -> +0 | AB5: =standaardposten!AC83 -> +0 | AC5: =standaardposten!AD83 -> +0 | AD5: =standaardposten!AE83 -> +0 | AE5: =standaardposten!AF83 -> +0 | AF5: =standaardposten!AG83 -> +0 | AG5: =standaardposten!AH83 -> +0 | AH5: =standaardposten!AI83 -> +0 | AI5: =standaardposten!AJ83 -> +0 | AJ5: =standaardposten!AK83 -> +0 | AK5: =standaardposten!AL83 -> +0 | AL5: =standaardposten!AM83 -> +0 | AM5: =standaardposten!AN83 -> +0 | AN5: =standaardposten!AO83 -> +0 | AO5: =standaardposten!AP83 -> +0
A6: Specials | B6: =specials!V50 -> +135 | C6: =specials!D50 -> +90 | D6: =specials!G50 -> +180 | E6: =specials!W50 -> +225 | F6: =specials!C50 -> +225 | G6: =specials!P50 -> +360 | H6: =specials!K50 -> +360 | I6: =specials!Z50 -> +315 | J6: =specials!E50 -> +450 | K6: =specials!S50 -> +585 | L6: =specials!L50 -> +675 | M6: =specials!AA50 -> +720 | N6: =specials!T50 -> +765 | O6: =specials!O50 -> +945 | P6: =specials!U50 -> +855 | Q6: =specials!X50 -> +810 | R6: =specials!J50 -> +675 | S6: =specials!F50 -> +900 | T6: =specials!H50 -> +855 | U6: =specials!R50 -> +1125 | V6: =specials!I50 -> +0 | W6: =specials!M50 -> +0 | X6: =specials!N50 -> +0 | Y6: =specials!Q50 -> +0 | Z6: =specials!Y50 -> +0 | AA6: =specials!AB50 -> +0 | AB6: =specials!AC50 -> +0 | AC6: =specials!AD50 -> +0 | AD6: =specials!AE50 -> +0 | AE6: =specials!AF50 -> +0 | AF6: =specials!AG50 -> +0 | AG6: =specials!AH50 -> +0 | AH6: =specials!AI50 -> +0 | AI6: =specials!AJ50 -> +0 | AJ6: =specials!AK50 -> +0 | AK6: =specials!AL50 -> +0 | AL6: =specials!AM50 -> +0 | AM6: =specials!AN50 -> +0 | AN6: =specials!AO50 -> +0 | AO6: =specials!AP50 -> +0
A7: Totaal | B7: =SUM(B2:B6) -> 456 | C7: =SUM(C2:C6) -> 478 | D7: =SUM(D2:D6) -> 595 | E7: =SUM(E2:E6) -> 621 | F7: =SUM(F2:F6) -> 651 | G7: =SUM(G2:G6) -> 732 | H7: =SUM(H2:H6) -> 882 | I7: =SUM(I2:I6) -> 900 | J7: =SUM(J2:J6) -> 1038 | K7: =SUM(K2:K6) -> 1089 | L7: =SUM(L2:L6) -> 1365 | M7: =SUM(M2:M6) -> 1623 | N7: =SUM(N2:N6) -> 1644 | O7: =SUM(O2:O6) -> 1659 | P7: =SUM(P2:P6) -> 1686 | Q7: =SUM(Q2:Q6) -> 1695 | R7: =SUM(R2:R6) -> 1722 | S7: =SUM(S2:S6) -> 1887 | T7: =SUM(T2:T6) -> 1887 | U7: =SUM(U2:U6) -> 2265 | V7: =SUM(V2:V6) -> 3360 | W7: =SUM(W2:W6) -> 3360 | X7: =SUM(X2:X6) -> 3360 | Y7: =SUM(Y2:Y6) -> 3360 | Z7: =SUM(Z2:Z6) -> 3360 | AA7: =SUM(AA2:AA6) -> 9999 | AB7: =SUM(AB2:AB6) -> 9999 | AC7: =SUM(AC2:AC6) -> 9999 | AD7: =SUM(AD2:AD6) -> 9999 | AE7: =SUM(AE2:AE6) -> 9999 | AF7: =SUM(AF2:AF6) -> 9999 | AG7: =SUM(AG2:AG6) -> 9999 | AH7: =SUM(AH2:AH6) -> 9999 | AI7: =SUM(AI2:AI6) -> 9999 | AJ7: =SUM(AJ2:AJ6) -> 9999 | AK7: =SUM(AK2:AK6) -> 9999 | AL7: =SUM(AL2:AL6) -> 9999 | AM7: =SUM(AM2:AM6) -> 9999 | AN7: =SUM(AN2:AN6) -> 9999 | AO7: =SUM(AO2:AO6) -> 9999
A9: RANG | B9: =RANK(B7,$B$7:$AO$7,2) -> 1 | C9: =RANK(C7,$B$7:$AO$7,2) -> 2 | D9: 3 | E9: 4 | F9: 5 | G9: 6 | H9: 7 | I9: 8 | J9: 9 | K9: 10 | L9: 11 | M9: 12 | N9: 13 | O9: 14 | P9: 15 | Q9: 16 | R9: 17 | S9: 18 | T9: 18 | U9: 20 | V9: 21 | W9: 21 | X9: 21 | Y9: 21 | Z9: 21 | AA9: 26 | AB9: 26 | AC9: 26 | AD9: 26 | AE9: 26 | AF9: 26 | AG9: 26 | AH9: 26 | AI9: 26 | AJ9: 26 | AK9: 26 | AL9: 26 | AM9: 26 | AN9: 26 | AO9: 26

Sheet Blad1
